Cogmind - Beta 10.2 @@@ ROGUE MODE // 2020.11.02 @ 20:48:57 Player: Reverend Result: Destroyed by L-31 Rogue with Katana Performance ------------- Evolutions (2) 1000 Regions Visited (5) 1000 Robots Destroyed (74) 370 Value Destroyed (2242) 2242 Prototype IDs (1) 20 Alien Tech Used (0) 0 Bonus (641) 641 TOTAL SCORE: 5273 Bonus ------- High Alert Combat Kills 566 Follower Combat Kills 274 Entered Garrisons 200 Friendly Fire -399 Cogmind --------- Core Integrity 0/550 Matter 107/300 Energy 70/100 System Corruption 3% Temperature Cool (0) Movement Walking (120) Location -8/Materials Parts ------- > --- POWER (1) -------- (None) > --- PROPULSION (3) --- Aluminum Leg > --- UTILITY (4) ------ Heat Sink > --- WEAPON (3) ------- (None) > --- INVENTORY (4) ---- Relay Coupler [Hunter] (18) Relay Coupler [Behemoth] (10) Peak State ------------ > --- POWER ------------ Light Nuclear Core > --- PROPULSION ------- Improved Aluminum Leg Improved Aluminum Leg Improved Aluminum Leg > --- UTILITY ---------- Large Storage Unit Small Matter Pod Shield Generator Drone Bay > --- WEAPON ----------- Particle Gun Rocket Launcher Flail > --- INVENTORY -------- Heavy Ion Engine Aluminum Leg Improved Aluminum Leg Improved Aluminum Leg Relay Coupler [Hunter] Relay Coupler [Behemoth] High-powered Tractor Beam Drone Bay [Rating: 26] Favorites ----------- Power Heavy Ion Engine Engine Heavy Ion Engine Power Core Light Nuclear Core Propulsion Improved Aluminum Leg Leg Improved Aluminum Leg Utility Shield Generator Device Shield Generator Storage Small Storage Unit Protection Medium Armor Plating Weapon Rocket Launcher Energy Gun Particle Gun Ballistic Gun Assault Rifle Ballistic Cannon Assault Cannon Launcher Rocket Launcher Impact Weapon Flail Build | -11 -10 -9 -9 -9 -8 ------- Run | Scr Mat Mat Sto Gar Mat Slots Evolved 4 | . . 2 . . 2 Power . | . . . . . . Propulsion 1 | . . 1 . . . Utility 2 | . . 1 . . 1 Weapon 1 | . . . . . 1 Parts Attached 65 | 6 3 10 13 4 29 Power 7 | 1 1 1 1 1 2 Engine 5 | 1 1 1 1 . 1 Core 2 | . . . . 1 1 Reactor . | . . . . . . Propulsion 23 | 2 2 2 7 . 10 Treads . | . . . . . . Leg 23 | 2 2 2 7 . 10 Wheel . | . . . . . . Hover . | . . . . . . Flight . | . . . . . . Utility 16 | 1 . 2 4 1 8 Device 12 | . . 2 3 1 6 Storage 3 | 1 . . 1 . 1 Processor . | . . . . . . Hackware . | . . . . . . Protection 1 | . . . . . 1 Artifact . | . . . . . . Weapon 19 | 2 . 5 1 2 9 Energy Gun 10 | . . 2 . 1 7 Energy Cannon . | . . . . . . Ballistic Gun 5 | 2 . 2 . . 1 Ballistic Cannon 1 | . . . . . 1 Launcher 1 | . . 1 . . . Special Weapon . | . . . . . . Impact Weapon 2 | . . . 1 1 . Slashing Weapon . | . . . . . . Piercing Weapon . | . . . . . . Special Melee Weapon . | . . . . . . Unidentified Prototypes 1 | . . . 1 . . Parts Lost 25 | . . 1 . . 24 Power 1 | . . . . . 1 Propulsion 7 | . . . . . 7 Utility 7 | . . . . . 7 Weapon 10 | . . 1 . . 9 Highest Loss Streak 13 | . . 1 . . 13 Average Slot Usage (%) 91 | . 85 89 99 100 72 Engine 8 | . 14 11 11 3 3 Core 2 | . . . . 7 4 Leg 30 | . 28 33 32 33 21 Device 15 | . . 12 22 22 6 Storage 11 | . 14 11 11 11 12 Energy Gun 4 | . . 5 4 . 6 Ballistic Gun 5 | . 28 13 . . 2 Launcher 7 | . . 2 11 11 3 Impact Weapon 5 | . . . 6 10 8 Naked Turns 10 | . . . . . 10 Heaviest Build 41 | 12 12 18 38 38 41 Greatest Support 40 | 20 20 30 39 39 40 Greatest Overweight (x) 7 | 1 1 . 7 . 5 Average Overweight (x) . | . . . . . . Largest Inventory Capacity 10 | 6 6 6 10 10 10 Average Capacity 7 | 5 6 6 6 10 9 Most Carried 10 | 4 6 6 7 10 10 Average Carried 6 | 3 5 5 6 8 8 Final Capacity 10 | 6 6 6 10 10 4 Final Carried 10 | 4 6 6 7 10 2 Class Distribution -------------------- 54% | Mutant 29% | Scavenger-Mutant 16% | Commander-Mutant Dominant Class ---------------- Mutant | -10/Materials Scavenger-Mutant | -9/Materials Commander-Mutant | -9/Storage Mutant | -9/Garrison Mutant | -8/Materials Resources | -11 -10 -9 -9 -9 -8 ----------- Run | Scr Mat Mat Sto Gar Mat Matter Collected 1630 | 224 110 195 493 314 294 Remotely 512 | . . 50 376 . 86 Salvage Created 1594 | . 168 239 358 367 462 Parts 109 | . 9 16 30 24 30 Haulers Intercepted 2 | . . . 1 . 1 Recyclers Shooed 1 | . . . . . 1 Parts Field Recycled . | . . . . . . Retrieved Matter . | . . . . . . Parts Self-Destructed . | . . . . . . Prevented . | . . . . . . Kills | -11 -10 -9 -9 -9 -8 ------- Run | Scr Mat Mat Sto Gar Mat Combat Hostiles Destroyed 62 | . 4 8 17 16 17 Melee 1 | . . . . 1 . Guns 20 | . 4 7 . 1 8 Cannons 1 | . . . . . 1 AOE 40 | . . 1 17 14 8 Classes Destroyed 10 | . 1 3 2 1 3 Worker 3 | . . . 3 . . Builder 1 | . . . . . 1 Hauler 2 | . . . 1 . 1 Recycler 2 | . . . . . 2 Drone 2 | . . . . 2 . Watcher 1 | . . 1 . . . Swarmer 22 | . . 4 7 4 7 Grunt 29 | . 4 2 2 13 8 Sentry 11 | . . 2 8 . 1 Hunter 1 | . . . . . 1 Best Kill Streak 12 | . 4 4 12 4 7 Combat Bots Only 8 | . 4 4 8 4 6 Max Kills in Single Turn 8 | . 1 2 8 4 2 Gunslinging 1 | . . 1 . . . Exploded 6 | . . 1 6 4 2 Melee 1 | . . . . 1 . Uniques/NPCs Destroyed . | . . . . . . Combat | -11 -10 -9 -9 -9 -8 -------- Run | Scr Mat Mat Sto Gar Mat Damage Taken 3790 | . 218 440 304 287 2541 Core 739 | . 55 35 48 50 551 Absorbed by Shields 427 | . . . 121 112 194 Core Remaining (%) 81 | 100 78 . . 66 . Volleys Fired 180 | 3 13 27 33 29 75 Largest 2 | 2 2 2 1 1 2 Hottest 85 | 40 40 85 33 65 85 Shots Fired 225 | 6 26 51 33 29 80 Gun 135 | 6 26 49 . 3 51 Cannon 5 | . . . . . 5 Launcher 85 | . . 2 33 26 24 Special . | . . . . . . Kinetic 95 | 6 26 36 . . 27 Thermal 36 | . . 8 . 3 25 Explosive 85 | . . 2 33 26 24 Electromagnetic 9 | . . 5 . . 4 Robot Hit Streak 16 | 1 12 15 16 6 7 Robot Miss Streak 12 | 2 1 3 2 1 12 Penetration Max . | . . . . . . Secondary Targets 2 | . 1 1 . . . Max Gunslinging Chain 1 | . 1 1 . . . Shots Hit Robots 140 | 2 21 35 20 15 47 Core Hits 132 | . 9 15 38 26 44 Critical Hits 1 | . . 1 . . . Critical Kills . | . . . . . . Critical Parts Destroyed 1 | . . 1 . . . Melee Attacks 13 | . . . 3 6 4 Impact 13 | . . . 3 6 4 Slashing . | . . . . . . Piercing . | . . . . . . Sneak Attacks 2 | . . . 2 . . Combat Hostiles . | . . . . . . Follow-up Attacks . | . . . . . . Damage Inflicted 5407 | 28 207 419 1538 1523 1692 Guns 1034 | 28 207 381 . 30 388 Cannons 100 | . . . . . 100 Explosions 4033 | . . 38 1395 1433 1167 Melee 240 | . . . 143 60 37 Ramming . | . . . . . . Kinetic 749 | 28 207 244 . . 270 Thermal 340 | . . 104 . 30 206 Explosive 4033 | . . 38 1395 1433 1167 Electromagnetic 45 | . . 33 . . 12 Impact 240 | . . . 143 60 37 Slashing . | . . . . . . Piercing . | . . . . . . Highest Corruption 3 | . . . 2 2 3 Average Corruption 1 | . . . 1 2 3 Corruption Purged . | . . . . . . Effects 15 | . . . 6 3 6 Message Errors 7 | . . . 3 1 3 Heat Flow Errors 1 | . . . . 1 . Energy Discharges 2 | . . . 2 . . Data Loss (minor) 2 | . . . . . 2 Targeting Errors 3 | . . . 1 1 1 Overload Shots . | . . . . . . Overflow Damage 240 | . . . 117 85 38 Projectiles . | . . . . . . Explosions 164 | . . . 53 85 26 Melee 76 | . . . 64 . 12 Knockbacks 3 | . . . 1 1 1 Impact 2 | . . . 1 1 . Kinetic 1 | . . . . . 1 Secondary . | . . . . . . Self-Inflicted Damage 257 | . . . 96 160 1 Shots 11 | . . . 4 6 1 Rammed . | . . . . . . Targets Rammed . | . . . . . . Kicked . | . . . . . . Crushed . | . . . . . . Highest Temperature 257 | . 16 45 . 257 100 Average Temperature 32 | . 8 14 . 93 25 Received Heat Transfer 738 | . 120 117 72 84 345 Siege Activations . | . . . . . . Robots Corrupted . | . . . . . . Combat Hostiles . | . . . . . . Parts Fried . | . . . . . . Impact Corruptions 2 | . . . 1 . 1 Robots Melted . | . . . . . . Combat Hostiles . | . . . . . . Parts Melted 1 | . . . . . 1 Heat Transferred 814 | . . 259 . 74 481 Parts Sabotaged . | . . . . . . Parts Stolen . | . . . . . . Parts Stripped . | . . . . . . Power Chain Reactions . | . . . . . . Missiles Intercepted . | . . . . . . Alert | -11 -10 -9 -9 -9 -8 ------- Run | Scr Mat Mat Sto Gar Mat Peak Influence 1176 | . 110 303 898 1176 1034 Initial 583 | . . 46 42 583 573 Average 490 | . 60 222 284 952 880 Maximum Alert Level 4 | . . 1 3 4 3 Low Security (%) 35 | 100 100 42 51 . . Level 1 18 | . . 57 24 . . Level 2 8 | . . . 8 15 12 Level 3 32 | . . . 15 57 87 Level 4 5 | . . . . 26 . Level 5 . | . . . . . . High Security . | . . . . . . Max Security . | . . . . . . Squads Dispatched 15 | . 3 1 6 . 5 Investigation 3 | . 2 . 1 . . Extermination . | . . . . . . Reinforcement 6 | . 1 1 3 . 1 Assault . | . . . . . . Garrison 6 | . . . 2 . 4 Intercept . | . . . . . . Construction Impeded 1 | . . . . . 1 Haulers Reinforced . | . . . . . . Stealth | -11 -10 -9 -9 -9 -8 --------- Run | Scr Mat Mat Sto Gar Mat Distress Signals 6 | . . 1 2 . 3 Communications Jammed . | . . . . . . Distress Signals . | . . . . . . Times Spotted 92 | . 6 13 27 19 27 Peak Tracking Total 12 | . 6 6 8 4 12 Tactical Retreats 7 | . . 2 . 3 2 Traps | -11 -10 -9 -9 -9 -8 ------- Run | Scr Mat Mat Sto Gar Mat Traps Triggered 7 | . 2 1 3 1 . Indirectly . | . . . . . . Trap Hack Attempts . | . . . . . . Triggered . | . . . . . . Disarmed . | . . . . . . Reprogrammed . | . . . . . . Reused . | . . . . . . Traps Extracted . | . . . . . . Installed . | . . . . . . Triggered . | . . . . . . Machines | -11 -10 -9 -9 -9 -8 ---------- Run | Scr Mat Mat Sto Gar Mat Machines Disabled 16 | . . . 8 4 4 Max in Single Turn 2 | . . . 2 2 2 Garrison Relay 1 | . . . . 1 . Machines Sabotaged . | . . . . . . Garrisons Compromised . | . . . . . . Overloaded Fab Kills . | . . . . . . Fab Network Shutdowns . | . . . . . . Hacking | -11 -10 -9 -9 -9 -8 --------- Run | Scr Mat Mat Sto Gar Mat Machines Accessed 6 | . . . 6 . . Terminals 4 | . . . 4 . . Fabricators . | . . . . . . Repair Stations 1 | . . . 1 . . Recycling Units . | . . . . . . Scanalyzers . | . . . . . . Garrison Access 1 | . . . 1 . . Total Hacks 11 | . . . 11 . . Successful 8 | . . . 8 . . Failed 3 | . . . 3 . . Catastrophic . | . . . . . . Database Lockouts . | . . . . . . Manual . | . . . . . . Terminals 7 | . . . 7 . . Fabricators . | . . . . . . Repair Stations 3 | . . . 3 . . Recycling Units . | . . . . . . Scanalyzers . | . . . . . . Garrison Access 1 | . . . 1 . . Terminal Hacks 5 | . . . 5 . . Record 2 | . . . 2 . . Open Door 1 | . . . 1 . . Locate Traps 1 | . . . 1 . . Dispatch Records 1 | . . . 1 . . Fabricator Hacks . | . . . . . . Repair Station Hacks 2 | . . . 2 . . Scan Component 1 | . . . 1 . . Repair 1 | . . . 1 . . Recycling Unit Hacks . | . . . . . . Scanalyzer . | . . . . . . Garrison Access Hacks 1 | . . . 1 . . Unlock Access 1 | . . . 1 . . Unauthorized Hacks . | . . . . . . Terminals . | . . . . . . Fabricators . | . . . . . . Repair Stations . | . . . . . . Recycling Units . | . . . . . . Scanalyzers . | . . . . . . Garrison Access . | . . . . . . Data Cores Recovered . | . . . . . . Used . | . . . . . . Hacking Detections 2 | . . . 2 . . Full Trace Events . | . . . . . . Feedback Events . | . . . . . . Feedback Blocked . | . . . . . . Robot Schematics Acquired . | . . . . . . Robots Built . | . . . . . . Matter . | . . . . . . Time . | . . . . . . Total Robot Build Rating . | . . . . . . Part Schematics Acquired . | . . . . . . Parts Built . | . . . . . . Matter . | . . . . . . Time . | . . . . . . Total Part Build Rating . | . . . . . . Parts Repaired 1 | . . . 1 . . Time 32 | . . . 32 . . Parts Recycled . | . . . . . . Recycled Matter . | . . . . . . Retrieved Matter . | . . . . . . Retrieved Components . | . . . . . . Parts Scanalyzed . | . . . . . . Part Schematics Acquired . | . . . . . . Parts Damaged . | . . . . . . Bothacking | -11 -10 -9 -9 -9 -8 ------------ Run | Scr Mat Mat Sto Gar Mat Used RIF Installer . | . . . . . . Robots Hacked . | . . . . . . Non-combat . | . . . . . . Combat . | . . . . . . Robot Hacks Applied . | . . . . . . Relay Couplers Released 4 | . . . . 4 . Machine Destruction 4 | . . . . 4 . Robots Rewired . | . . . . . . Allies Hacked . | . . . . . . Hacks Repelled . | . . . . . . Allies | -11 -10 -9 -9 -9 -8 -------- Run | Scr Mat Mat Sto Gar Mat Total Allies 10 | . . . 10 . . Largest Group 10 | . . . 10 5 . Highest-Rated Group 88 | . . . 88 48 . Highest-Rated Ally 16 | . . . 16 16 . Total Orders . | . . . . . . Ally Attacks 70 | . . . 44 26 . Total Damage 644 | . . . 406 238 . Kills 15 | . . . 12 3 . Allies Corrupted . | . . . . . . Allies Melted . | . . . . . . Intel | -11 -10 -9 -9 -9 -8 ------- Run | Scr Mat Mat Sto Gar Mat Robot Analysis Total . | . . . . . . Derelict Logs Recovered . | . . . . . . Drone Launches 6 | . . . 2 2 2 Drone Recoveries 1 | . . . . . 1 Exploration | -11 -10 -9 -9 -9 -8 ------------- Run | Scr Mat Mat Sto Gar Mat Turns Passed 2310 | 76 170 409 769 465 421 Spaces Moved 1421 | 53 104 263 519 315 167 Core 35 | 17 . . 2 . 16 Treads . | . . . . . . Legs 1386 | 36 104 263 517 315 151 Wheels . | . . . . . . Hover . | . . . . . . Flight . | . . . . . . Fastest Speed 50 | 50 120 120 120 120 50 Average Speed 120 | 101 120 120 121 120 122 Slowest Speed 400 | 120 150 120 400 120 300 Overloaded Moves . | . . . . . . Propulsion Burnouts . | . . . . . . Robots Hopped . | . . . . . . Cave-ins Triggered 1 | . . . . . 1 Exploration Rate (%) 32 | 4 23 18 83 52 17 Regions Visited 5 Branch Regions 1 Pre-discovered Areas . | . . . . . . Known Exits Taken 1 | . . . 1 . . Unknown Exits Taken 3 | 1 1 1 . . . Scrap Searched . | . . . . . . Spaces Dug 25 | . . . 13 12 . Terrain Destroyed 516 | . . 31 239 102 144 Melee . | . . . . . . Projectile 1 | . . . . . 1 AOE 515 | . . 31 239 102 143 Terrain Rammed . | . . . . . . Walls Destroyed . | . . . . . . Machines Disabled . | . . . . . . Actions | -11 -10 -9 -9 -9 -8 --------- Run | Scr Mat Mat Sto Gar Mat Total 1785 | 68 126 311 624 363 293 Wait 37 | . . . 32 . 5 Move 1417 | 52 103 262 519 314 167 Hop . | . . . . . . Pick Up 40 | 7 3 6 9 4 11 Fast Attach 13 | 3 2 2 5 . 1 Attach 25 | 3 . 3 . 1 18 Detach 1 | . . . . . 1 Swap 27 | . 1 5 8 3 10 Drop 27 | . 4 6 15 1 1 Fire 180 | 3 13 27 33 29 75 Melee 13 | . . . 3 6 4 Ram . | . . . . . . Kick . | . . . . . . Crush . | . . . . . . Escape Stasis 5 | . . . . 5 . Rewire . | . . . . . . Trap . | . . . . . . Miscellaneous . | . . . . . . Route ------- -11/Scrapyard -10/Materials -9/Materials -9/Storage (discovered 2 exits: [*Mat] / Gar) -9/Garrison -8/Materials History --------- Turn | Location | Event 17 | -11/Scrapyard | Discovered new exit (range 15) 77 | -11/Scrapyard | Entered Materials 237 | -10/Materials | Discovered new exit (range 5) 247 | -10/Materials | Entered another Materials area 247 | -9/Materials | Evolved 2 slots: Propulsion x1, Utility x1 555 | -9/Materials | Build established: Scavenger-Mutant 583 | -9/Materials | Discovered new exit (range 5) 656 | -9/Materials | Entered Storage 970 | -9/Storage | Repaired Flail 1030 | -9/Storage | Build established: Mutant 1073 | -9/Storage | Assisted by bots powering up and referring to "LRC-V3" 1279 | -9/Storage | Destroyed 8 combat bots 1287 | -9/Storage | Garrison activated, responded to threat 1320 | -9/Storage | Discovered new exit (range 17) 1386 | -9/Storage | Build established: Commander-Mutant 1425 | -9/Storage | Identified exit to Garrison 1425 | -9/Storage | Entered Garrison 1425 | -9/Garrison | Accompanied by 5 allies 1492 | -9/Garrison | Triggered checkpoint 1547 | -9/Garrison | Triggered checkpoint 1661 | -9/Garrison | Triggered checkpoint 1761 | -9/Garrison | Build established: Mutant 1762 | -9/Garrison | Triggered checkpoint 1802 | -9/Garrison | Garrison Relay disabled 1879 | -9/Garrison | Discovered new exit (range 9) 1890 | -9/Garrison | Entered Materials 1890 | -8/Materials | Evolved 2 slots: Utility x1, Weapon x1 1933 | -8/Materials | Garrison activated, responded to threat 2108 | -8/Materials | Crushed by falling debris 2181 | -8/Materials | Lost 13 parts (3n6u4w) 2261 | -8/Materials | Garrison activated, responded to threat 2289 | -8/Materials | Core integrity fell below 50% 2294 | -8/Materials | Core integrity fell below 20% 2311 | -8/Materials | Destroyed by L-31 Rogue with Katana Last Messages --------------- 02281_ Assault Rifle destroyed. 02282_ U-05 Engineer lays Concrete. 02282_ Imp. Aluminum Leg destroyed. 02283_ U-05 Engineer lays Concrete. 02285_ EM Pulse Gun destroyed. 02287_ U-05 Engineer lays Concrete. 02288_ Imp. Aluminum Leg destroyed. 02288_ EM Pulse Gun destroyed. 02289_ U-05 Engineer lays Concrete. 02290_ Lrg. Storage Unit destroyed. 02290_ U-05 Engineer lays Concrete. 02291_ Flail destroyed. 02293_ U-05 Engineer lays Concrete. 02295_ Acquired 22 matter. 02295_ U-05 Engineer lays Concrete. 02295_ Acquired 57 matter. 02296_ Acquired 4 matter. 02301_ RC JS5ATQPESN7DUQF,>Y4TIRHXZO6D< 02301_ K-01 Serf collects debris. 02305_ O-16 Technician: "IFF HANDSHAKE FAILED. SECURING TERMINAL." Map ----- +----------------------------------------------------+ | ?????????????????????????????????????????????????? | | ?????????????????????????????????????????????????? | | ?????????????????????????????????????????????????? | | ?????????????????????????????????????????????????? | | ?????????????????????????????????????????????????? | | ?????????????????????????????????????????????????? | | ?????????????????????????????????????????????????? | | ????????????????????????? ???????????????????????? | | ????????????????????????? ???????????????????????? | | ????????????????????????? ???????????????????????? | | ????????????????????????? ???????????????????????? | | ????????????????????????? ???????????????????????? | | ????????????????????????? ??????????##???????????? | | ????????????????????????? ?????????? ?????? ??? | | ????????????????????????# ##??? ???? ?????? ? | | ????????????????????????# ## ?? ??? ??? | | ????????????????????????# ## ""??? "T" ???? | | ????????????????????????# #? S"" ?? """????? | | ????????????????????????# #?? "" ## ?????# | | ????????????????????????#g#???# ? #??????# | | ???????????????????????## ##??# ############# | | ?????????????????####### ###### | | ?????????? r | | ?????????? ###### g##### " | | ???????????????????????##l## = * " | | ????????????????????????#@## # | | ????????????????????????#a#?# " # | | ????????????????????????#/#?#### # | | ???????????????????????? ????# # | | ???????????????????????? ????# # | | ??????????????????????? #???# " [ # | | ??????????????????????? #???# " [* # | | ?????????????????????? #???# # | | ?????????????????????? #???# # | | ????????????????????? #?### # | | ????????????????????? ! #?# # | | ???????????????????? ### | | ????????????????????######### # [ | | ????????????????????????????## # |= % | | ????????????????????????????# # [ *% | | ????????????????????????????### # #[### | | ????????????????????????????# # #?# | | ????????????????????????????# " =# ####### | | ????????????????????????????# # "G"%* # | | ????????????????????????????## # " "% """ # | | ????????????????????????????# # """ + | | ???????????????????????????# # ## ## """ # | | ???????????????????????????### # # ## # | | ?????????????????????????????# # ## """ + | | ?????????????????????????????##### ##! ## """ # | +----------------------------------------------------+ Best States ------------- Heat Dissipation 41 Energy Generation 14 Energy Capacity 280 Matter Stores 300 Matter Capacity 350 Sight Range 16 Terrain Scan Density 10 Armor Coverage 225 Evasion (%) 50 Item Schematics ----------------- None Robot Schematics ------------------ None Fabricated ------------ Nothing Alien Tech Used ----------------- None Achievements -------------- Backstab Quick And Dirty The More The Merrier Unlikely Earthworm Use The Force Challenges ------------ None Game ------ Seed TractorScanBoomstick Manual? 0 Play Time 00:49:36 Cumulative 6.4 hours Start 2020.11.02 @ 19:57:16 End 2020.11.02 @ 20:48:57 Sessions 1 Manual Loads 0 Difficulty Rogue Special Mode None Game No. 8 Rogue 8 Adventurer 0 Explorer 0 Win Type - Total 0 Types 0/0/0/0/0/0/0/0/0 Lore% 2 Gallery% 8 Achievement% 7 Wizard Run 0 Options --------- ASCII 0 Keyboard 0 Movement Mouse Keybinds 0 Fullscreen 2 Font 24/Smallcaps Map View 76x50 Tactical HUD 1 Map Filters NONE Filters NONE Steam 1 RUN: ee587676-f1e2-418a-9c5f-f0b7d08e39ef